bitfinex/quotes_SOLUSD_20240703
["timestamp","ask_amount","ask_price","bid_price","bid_amount"]
[1719998328436,35.61,147.09,147.04,15.61]
[1719998329565,35.61,147.09,147.0,62.44]
[1719998329762,0.34,147.08,147.0,62.44]
[1719998331367,0.34,147.08,146.99,16.0151]
[1719998331666,15.61,147.07,147.02,15.61]
[1719998331874,35.95,147.06,147.02,15.61]
[1719998332043,35.78,147.06,147.01,15.61]
[1719998332247,0.17,147.05,147.01,15.61]
[1719998334662,0.17,147.05,147.02,15.61]
[1719998334958,0.17,147.05,146.95,22.1427]
[1719998335160,0.17,147.05,147.01,15.61]
[1719998335342,0.17,147.05,146.95,28.9476]
[1719998335666,0.17,147.05,146.93,62.44]
[1719998335667,15.61,146.98,146.9,15.9724]
[1719998335962,35.78,146.97,146.93,15.61]
[1719998336336,0.17,146.96,146.93,15.61]
[1719998337473,0.17,146.96,146.9,15.9724]
[1719998337768,0.17,146.96,146.93,15.61]
[1719998339376,0.17,146.96,146.94,15.61]
[1719998340460,0.17,146.96,146.93,15.61]
[1719998340974,0.17,146.96,146.88,0.8205734]
[1719998341343,15.61,146.94,146.88,0.8205734]
[1719998341564,20.34,146.93,146.89,15.61]
[1719998341768,0.17,146.92,146.89,15.61]
[1719998341976,0.34,146.92,146.9,15.61]
[1719998342473,0.34,146.92,146.91,15.61]
[1719998344375,0.17,146.92,146.91,15.61]
[1719998344774,0.17,146.93,146.91,15.61]
[1719998344973,20.0,146.97,146.92,15.61]
[1719998345464,20.0,146.97,146.92,15.9703714]
[1719998346375,0.34,146.96,146.92,15.9703714]
[1719998348573,15.61,146.99,146.92,15.9703714]
[1719998348574,21.7225,147.05,146.95,15.61]
[1719998348777,15.61,147.04,147.0,15.61]
[1719998349270,15.61,147.04,146.99,15.61]
[1719998349660,21.7225,147.05,146.99,15.61]
[1719998349850,15.61,147.03,146.99,15.61]
[1719998350049,20.0,147.02,146.99,15.61]
[1719998350548,20.0,147.02,146.98,15.61]
[1719998351155,0.17,147.01,146.98,15.61]
[1719998351368,20.34,147.01,146.98,15.61]
[1719998352752,0.34,147.01,146.98,15.61]
[1719998353267,0.34,147.01,146.93,91.5563]
[1719998353461,0.34,147.01,146.93,84.7507]
[1719998353663,0.34,147.01,146.97,15.61]
[1719998353868,0.34,147.01,146.98,15.61]
[1719998354056,20.34,147.01,146.98,15.61]
[1719998354256,20.34,147.01,146.93,22.3107]
[1719998354471,20.34,147.01,146.98,15.61]
[1719998354782,0.34,147.01,146.99,15.61]
[1719998357951,20.34,147.02,146.99,15.61]
[1719998358151,20.34,147.02,146.93,84.7507]
[1719998358468,35.95,147.02,146.93,91.5566]
[1719998358669,35.95,147.02,146.98,15.61]
[1719998359183,35.95,147.02,146.93,84.7507]
[1719998359391,35.95,147.02,146.97,15.61]
[1719998359565,20.34,147.02,146.98,15.61]
[1719998359759,0.34,147.02,146.98,15.61]
[1719998359952,20.34,147.02,146.98,15.61]
[1719998361293,15.2528,147.05,147.01,15.61]
[1719998361463,20.0,147.04,147.01,15.61]
[1719998361665,15.61,147.06,146.97,6.8039]
[1719998361975,15.61,147.06,147.01,15.61]
[1719998362381,15.61,147.04,146.96,0.3603714]
[1719998362699,15.61,147.03,146.96,0.3603714]
[1719998363020,0.17,147.02,146.99,15.61]
[1719998363588,0.17,147.02,146.96,0.3603714]
[1719998364184,0.17,147.02,146.98,15.61]
[1719998364689,15.61,147.0,146.96,0.3603714]
[1719998364870,0.34,146.99,146.96,0.3603714]
[1719998365067,0.34,146.99,146.96,15.9703714]
[1719998365270,0.17,146.99,146.96,15.9703714]
[1719998365586,0.17,146.99,146.96,0.3603714]
[1719998365757,0.17,146.99,146.97,15.61]
[1719998365962,0.34,147.0,146.97,15.61]
[1719998367275,0.34,147.0,146.96,15.9703714]
[1719998367474,0.34,147.0,146.96,0.3603714]
[1719998367689,0.34,147.0,146.96,15.9703714]
[1719998368805,0.34,147.0,146.96,0.3603714]
[1719998368998,0.34,147.0,146.96,15.9703714]
[1719998370091,15.95,147.0,146.96,0.3603714]
[1719998370289,15.95,147.0,146.96,15.9703714]
[1719998371290,0.34,147.0,146.96,15.9703714]
[1719998371608,15.95,147.0,146.96,15.9703714]
[1719998372406,0.34,147.0,146.96,15.9703714]
[1719998372576,0.34,147.0,146.96,0.3603714]
[1719998372782,0.34,147.0,146.96,15.9703714]
[1719998374304,15.95,147.0,146.96,15.9703714]
[1719998378590,0.34,147.0,146.96,15.9703714]
[1719998378909,15.95,147.0,146.96,0.3603714]
[1719998379323,0.34,147.0,146.96,15.9703714]
[1719998379611,15.95,147.0,146.96,15.9703714]
[1719998380111,15.95,147.0,146.96,0.3603714]
[1719998380286,15.95,147.0,146.96,15.9703714]
[1719998380490,0.34,147.0,146.96,15.9703714]
[1719998380707,35.61,147.01,146.97,15.61]
[1719998381095,15.61,147.01,146.97,15.61]
[1719998381295,15.61,147.01,146.96,0.3603714]
[1719998381509,15.61,147.01,146.96,15.9703714]
[1719998382293,0.34,147.0,146.96,15.9703714]
[1719998382692,0.34,147.0,146.96,0.3603714]
[1719998382885,15.61,146.99,146.96,0.3603714]
[1719998383090,0.34,146.98,146.96,0.3603714]
[1719998384790,0.34,146.98,146.96,15.9703714]
[1719998385187,0.34,146.99,146.96,15.9703714]
[1719998386518,0.34,146.99,146.97,15.61]
[1719998386986,0.34,147.0,146.96,0.3603714]
[1719998387398,0.34,147.0,146.96,15.9703714]
[1719998387994,0.34,147.0,146.97,15.61]
[1719998388210,15.61,147.04,146.96,0.3603714]
[1719998388393,0.17,147.03,146.99,15.61]
[1719998389116,0.17,147.03,146.96,0.3603714]
[1719998389418,0.34,147.03,146.97,6.804]
[1719998389599,0.34,147.03,147.0,15.61]
[1719998389921,0.17,147.02,147.0,15.61]
[1719998390103,0.17,147.04,147.0,15.61]
[1719998390306,0.17,147.04,146.97,6.804]
[1719998390696,0.17,147.04,147.0,15.61]
[1719998391109,15.78,147.05,147.0,15.61]
[1719998391298,0.17,147.04,147.0,15.61]
[1719998393106,35.95,147.05,147.0,15.61]
[1719998393515,35.95,147.05,147.01,15.61]
[1719998394594,20.0,147.05,147.01,15.61]
[1719998394897,31.033,147.06,147.01,15.61]
[1719998395090,15.61,147.05,147.01,15.61]
[1719998395313,15.61,147.07,147.02,15.61]
[1719998395525,7.08342285,147.09,147.0,15.61]
[1719998395832,31.6319,147.1,147.06,15.61]
[1719998396122,16.0219,147.1,147.06,15.61]
[1719998396416,31.6319,147.1,147.06,15.61]
[1719998396609,15.61,147.09,147.05,15.61]
[1719998397011,20.0,147.08,147.05,15.61]
[1719998397499,22.6653,147.14,147.07,15.61]
[1719998397701,15.61,147.12,147.04,6.8007]
[1719998397916,20.0,147.11,147.03,6.8012]
[1719998398116,0.34,147.1,147.07,15.61]
[1719998398523,0.34,147.1,147.0,62.44]
[1719998398836,35.95,147.1,147.06,15.61]
[1719998399027,15.95,147.1,147.06,15.61]
[1719998399213,0.34,147.1,147.06,15.61]
[1719998399906,20.34,147.1,147.06,15.61]
[1719998401841,20.34,147.1,147.01,6.802]
[1719998402139,15.61,147.08,147.01,6.8022]
[1719998402310,0.34,147.07,147.04,15.61]
[1719998403126,0.34,147.07,147.05,15.61]
[1719998403326,0.34,147.08,147.05,15.61]
[1719998404855,0.34,147.09,147.06,15.61]
[1719998405534,15.61,147.1,147.06,15.61]
[1719998405720,15.61,147.12,147.07,15.61]
[1719998406048,20.0,147.11,147.07,15.61]
[1719998406223,35.61,147.11,147.07,15.61]
[1719998406853,0.17,147.1,147.07,15.61]
[1719998407020,0.34,147.1,147.07,15.61]
[1719998407340,0.34,147.1,147.0,62.44]
[1719998407341,15.61,147.08,147.0,62.44]
[1719998407528,0.34,147.07,147.04,15.61]
[1719998408232,0.17,147.06,147.04,15.61]
[1719998408432,0.34,147.08,147.04,15.61]
[1719998409352,0.34,147.08,147.05,15.61]
[1719998409542,0.17,147.08,147.05,15.61]
[1719998409731,0.34,147.09,147.05,15.61]
[1719998409928,15.95,147.09,147.05,15.61]
[1719998410130,15.95,147.09,147.04,15.61]
[1719998410443,15.61,147.08,147.04,15.61]
[1719998410658,0.34,147.07,147.04,15.61]
[1719998410848,0.17,147.07,147.04,15.61]
[1719998411153,0.34,147.07,147.04,15.61]
[1719998412155,0.34,147.07,147.05,15.61]
[1719998412342,0.34,147.08,147.03,6.8011]
[1719998412541,15.61,147.07,147.0,6.8025]
[1719998412731,15.95,147.06,147.02,15.61]
[1719998413939,15.61,147.04,146.98,6.8032]
[1719998414143,15.61,147.04,146.99,15.61]
[1719998414450,0.34,147.03,147.0,15.61]
[1719998414646,0.17,147.03,147.0,15.61]
[1719998414850,15.61,147.06,146.99,6.8028]
[1719998415038,15.78,147.05,147.0,15.61]
[1719998415353,0.17,147.04,147.0,15.61]
[1719998416234,15.78,147.04,146.96,5.84416725]
[1719998416556,15.61,147.02,146.96,0.3603714]
[1719998416745,0.34,147.01,146.96,0.3603714]
[1719998416933,0.34,147.01,146.97,15.61]
[1719998417752,0.34,147.01,146.96,7.1647714]
[1719998418258,15.95,147.01,146.96,15.9703714]
[1719998418457,15.95,147.01,146.96,0.3603714]
[1719998418627,15.61,147.0,146.96,0.3603714]
[1719998418825,0.34,146.99,146.96,0.3603714]
[1719998419136,0.34,146.99,146.96,15.9703714]
[1719998419338,0.34,146.99,146.96,0.3603714]
[1719998419538,0.34,146.99,146.96,15.9703714]
[1719998421161,0.34,146.99,146.96,0.3603714]
[1719998421342,15.95,146.99,146.96,0.3603714]
[1719998421542,15.61,146.98,146.96,0.3603714]
[1719998421745,0.34,146.97,146.96,0.3603714]
[1719998422749,15.95,146.97,146.96,0.3603714]
[1719998423132,35.95,146.97,146.96,0.3603714]
[1719998423339,51.7197,146.97,146.96,0.3603714]
[1719998424241,36.1097,146.97,146.96,0.3603714]
[1719998424537,51.7197,146.97,146.96,0.3603714]
[1719998428761,9.2477,146.96,146.88,15.61]
[1719998428948,15.61,146.93,146.88,15.61]
[1719998429144,0.34,146.92,146.88,15.61]
[1719998429634,0.34,146.92,146.85,6.8096]
[1719998429834,0.34,146.92,146.88,15.61]
[1719998430634,15.61,146.91,146.84,21.97903457]
[1719998430854,0.34,146.9,146.86,15.61]
[1719998431448,15.95,146.9,146.86,15.61]
[1719998432761,0.34,146.9,146.86,15.61]
[1719998433087,15.95,146.9,146.84,5.46383457]
[1719998433264,0.34,146.9,146.83,22.4204]
[1719998433437,15.61,146.88,146.83,22.4204]
[1719998433633,0.34,146.87,146.83,22.4204]
[1719998433833,0.34,146.87,146.83,6.8104]
[1719998434237,0.34,146.87,146.83,22.4204]
[1719998434452,0.34,146.87,146.84,15.61]
[1719998435277,0.34,146.87,146.81,6.2330814]
[1719998435478,15.61,146.86,146.82,15.61]
[1719998435689,0.34,146.85,146.81,16.4523918]
[1719998436064,15.95,146.85,146.81,16.4523918]
[1719998436260,15.95,146.85,146.81,0.8423918]
[1719998436672,15.95,146.85,146.81,16.4523918]
[1719998436871,15.95,146.85,146.81,0.8423918]
[1719998437266,15.61,146.83,146.81,0.8423918]
[1719998437758,15.95,146.82,146.81,0.8423918]
[1719998439087,0.34,146.82,146.81,0.8423918]
[1719998441069,6.6106,146.82,146.81,0.8423918]
[1719998441269,42.2206,146.82,146.81,0.8423918]
[1719998442903,20.34,146.82,146.81,0.8423918]
[1719998443605,35.95,146.82,146.81,0.8423918]
[1719998443809,20.34,146.82,146.81,0.8423918]
[1719998443973,15.95,146.82,146.81,0.8423918]
[1719998444380,35.95,146.82,146.81,0.8423918]
[1719998444681,0.34,146.82,146.81,0.8423918]
[1719998444881,16.5072,146.86,146.81,0.8423918]
[1719998445096,35.61,146.85,146.81,0.8423918]
[1719998445810,20.0,146.85,146.81,0.8423918]
[1719998446193,0.34,146.84,146.81,0.8423918]
[1719998447909,53.5754,146.9,146.81,0.8423918]
[1719998448082,20.0,146.89,146.81,7.6536918]
[1719998448282,20.0,146.89,146.81,0.8423918]
[1719998449204,0.17,146.88,146.81,0.8423918]
[1719998449511,0.34,146.88,146.81,0.8423918]
[1719998451198,0.34,146.88,146.81,7.6536918]
[1719998451393,20.0,146.89,146.83,15.4844]
[1719998451601,20.0,146.92,146.83,15.4844]
[1719998451988,31.26,146.93,146.83,22.2949]
[1719998452789,31.26,146.93,146.83,15.4844]
[1719998453011,29.40568317,146.94,146.83,22.2949]
[1719998453691,29.40568317,146.94,146.83,15.4844]
[1719998454017,0.34,146.93,146.83,15.4844]
[1719998454717,0.34,146.93,146.83,22.2946]
[1719998454912,20.34,146.93,146.83,22.2946]
[1719998455215,20.0,146.92,146.84,0.45096851]
[1719998455418,20.0,146.94,146.87,6.8086]
[1719998455723,20.0,146.93,146.88,0.45084569]
[1719998455894,20.0,146.93,146.85,31.26]
[1719998456289,20.0,146.97,146.85,31.26]
[1719998456499,13.84251275,147.01,146.88,31.26]
[1719998456706,31.26,147.04,146.88,31.26]
[1719998456998,7.08607611,147.03,146.9,6.8073]
[1719998457198,7.08607611,147.03,146.91,6.8068]
[1719998457810,20.0,147.02,146.91,6.8068]
[1719998458509,20.0,147.02,146.9,6.8072]
[1719998459690,0.17,147.01,146.9,6.8072]
[1719998459917,0.34,147.01,146.9,6.8072]
[1719998460300,0.34,147.01,146.89,6.8076]
[1719998461520,0.34,147.01,146.88,38.0682]
[1719998461721,0.34,147.01,146.89,6.8077]
[1719998462114,0.34,147.01,146.88,38.0681]
[1719998462701,0.34,147.01,146.89,6.8077]
[1719998463107,0.34,147.01,146.9,6.8073]
[1719998463394,0.34,147.01,146.89,6.8076]
[1719998466294,0.34,147.01,146.9,6.8072]
[1719998467828,15.6,146.99,146.94,15.6]
[1719998468162,20.34,146.98,146.94,15.6]
[1719998469125,7.08607611,147.03,146.95,15.8732]
[1719998469331,15.6,147.02,146.97,15.6]
[1719998469699,23.33650888,147.06,146.95,15.8732]
[1719998470324,0.17,147.05,146.95,15.8732]
[1719998470630,0.34,147.05,146.95,15.8732]
[1719998470999,20.34,147.05,146.95,15.8732]
[1719998471313,51.52,147.05,146.92,16.3633]
[1719998471520,31.18,147.01,146.9,6.2387]
[1719998471718,0.34,147.0,146.88,21.71702875]
[1719998471904,16.0635,146.99,146.88,16.3633]
[1719998472114,51.52,146.98,146.88,16.3633]
[1719998475533,51.18,146.98,146.88,16.3633]
[1719998475714,20.0,146.98,146.89,6.8076]
[1719998475910,16.0635,146.99,146.9,6.8073]
[1719998476107,16.0635,146.99,146.88,16.3633]
[1719998476108,16.0635,146.99,146.88,23.1713]
[1719998476307,16.0635,146.99,146.88,16.3633]
[1719998476723,16.0635,146.99,146.88,23.1715]
[1719998476922,0.34,146.98,146.88,23.1715]
[1719998477730,20.34,146.98,146.88,16.3633]
[1719998478722,26.5336,146.98,146.84,20.57400169]
[1719998478917,31.18,146.97,146.84,22.0549]
[1719998479122,20.34,146.96,146.85,6.8096]
[1719998480427,20.34,146.96,146.84,15.2449]
[1719998480624,20.34,146.96,146.85,6.8096]
[1719998480838,20.34,146.96,146.84,15.2449]
[1719998481222,20.34,146.96,146.85,6.8096]
[1719998481725,47.5045,146.95,146.83,6.0676]
[1719998481930,20.34,146.94,146.83,6.0676]
[1719998482330,20.34,146.94,146.81,6.27017651]
[1719998482331,37.5467,146.93,146.81,6.27017651]
[1719998482526,20.34,146.92,146.81,6.27017651]
[1719998482733,20.34,146.92,146.81,13.08137651]
[1719998485044,20.34,146.92,146.81,0.8423918]
[1719998486122,20.34,146.92,146.81,7.6536918]
[1719998487051,20.34,146.92,146.82,6.8109]
[1719998487227,20.34,146.92,146.83,6.8105]
[1719998487438,20.17,146.92,146.83,6.8105]
[1719998487620,20.0,146.92,146.84,6.81]
[1719998488017,6.3667,146.93,146.83,31.18]
[1719998488423,16.3245,146.95,146.86,37.9888]
[1719998488635,13.51736157,146.97,146.89,31.18]
[1719998488831,15.2144,146.99,146.87,36.2381]
[1719998489031,6.4312,147.01,146.9,6.8072]
[1719998489246,6.4312,147.01,146.88,6.8078]
[1719998489447,6.4312,147.01,146.87,15.7781]
[1719998489448,6.4312,147.01,146.9,37.9873]
[1719998490342,20.34,147.0,146.9,37.9873]
[1719998491149,0.34,147.0,146.9,31.18]
[1719998491343,0.34,147.0,146.88,6.8081]
[1719998491344,20.34,147.0,146.88,6.8081]
[1719998491662,20.34,147.0,146.87,15.7781]
[1719998491845,20.34,147.0,146.87,22.5865]
[1719998492146,20.34,147.0,146.91,6.8068]
[1719998493059,6.4312,147.01,146.92,6.8062]
[1719998493223,6.4312,147.01,146.93,0.49311558]
[1719998494430,0.34,147.0,146.93,0.49311558]
[1719998494861,0.34,147.0,146.9,31.18]
[1719998495156,20.34,147.0,146.9,31.18]
[1719998495955,0.34,147.0,146.9,31.18]
[1719998496156,0.34,147.0,146.91,6.8067]
[1719998496353,20.34,147.0,146.92,1.360941]
[1719998496557,20.34,147.0,146.93,1.36084837]
[1719998496760,20.34,147.0,146.92,1.36084837]
[1719998497054,0.34,147.0,146.92,1.36084837]
[1719998497356,0.34,147.0,146.92,6.8061]
[1719998497655,0.34,147.0,146.93,1.36075574]
[1719998497827,0.34,147.0,146.91,6.8067]
[1719998500040,0.34,147.0,146.92,6.806]
[1719998500937,0.34,147.0,146.9,31.18]
[1719998502050,0.34,147.0,146.91,6.8068]
[1719998502639,0.34,147.0,146.9,37.9872]
[1719998502842,20.34,147.0,146.91,6.8068]
[1719998503566,20.34,147.0,146.9,37.9871]
[1719998504064,20.34,147.0,146.91,6.8068]
[1719998504264,0.34,147.0,146.91,6.8068]
[1719998504641,20.34,147.0,146.91,6.8068]
[1719998505367,20.34,147.0,146.9,36.69230948]
[1719998505698,0.34,147.0,146.9,36.69230948]
[1719998505862,20.34,147.0,146.91,6.8065]
[1719998506460,20.34,147.0,146.9,43.49960948]
[1719998507370,20.34,147.0,146.91,6.8067]
[1719998509467,6.4312,147.01,146.93,31.18]
[1719998510986,0.34,147.0,146.93,31.18]
[1719998511785,0.34,147.0,146.94,6.8054]
[1719998512772,6.4312,147.01,146.95,6.8049]
[1719998513278,6.4312,147.01,146.94,6.8053]
[1719998513455,6.4312,147.01,146.93,31.18]
[1719998513973,0.34,147.0,146.93,31.18]
[1719998514285,0.34,147.0,146.91,37.9868]
[1719998514489,0.34,147.0,146.91,31.18]
[1719998514665,0.34,147.0,146.91,37.9866]
[1719998514863,0.34,147.0,146.91,31.18]
[1719998515591,0.34,147.0,146.91,37.9867]
[1719998517080,0.34,147.0,146.92,6.8063]
[1719998521284,0.34,147.0,146.87,21.30036019]
[1719998521455,0.34,147.0,146.92,6.8064]
[1719998524492,0.34,147.0,146.93,6.8058]
[1719998525200,0.34,147.0,146.92,6.8063]
[1719998525858,0.34,147.0,146.96,15.6]
[1719998527669,0.34,147.0,146.97,15.6]
[1719998527892,0.34,147.0,146.99,15.6]
[1719998528108,6.4312,147.01,146.99,15.6]
[1719998528392,6.4312,147.01,147.0,15.6]
[1719998529359,6.7712,147.01,147.0,15.6]
[1719998530308,15.7601,147.03,147.0,15.6]
[1719998530468,16.1828,147.06,147.02,15.6]
[1719998530682,16.1828,147.06,147.03,15.6]
[1719998530977,16.1828,147.06,147.02,15.6]
[1719998531381,0.17,147.05,147.02,15.6]
[1719998531565,0.34,147.05,147.02,15.6]
[1719998531971,0.34,147.05,147.01,15.6]
[1719998532381,15.94,147.05,147.01,15.6]
[1719998534705,16.1828,147.06,147.03,15.6]
[1719998535869,0.34,147.05,147.03,15.6]
[1719998538113,0.34,147.05,147.02,15.6]
[1719998538587,0.34,147.05,146.96,6.8042]
[1719998538997,0.34,147.05,147.02,15.6]
[1719998540102,0.34,147.05,147.01,15.6]
[1719998541002,0.34,147.05,147.03,15.6]
[1719998541197,0.34,147.05,147.04,15.6]
[1719998542982,7.07374485,147.11,147.04,15.6]
[1719998542983,16.4914,147.1,147.04,15.6]
[1719998543255,16.4914,147.1,147.01,6.802]
[1719998543498,32.0914,147.1,147.05,15.6]
[1719998544409,0.34,147.09,146.98,6.1386]
[1719998544578,0.34,147.09,147.03,15.6]
[1719998544579,15.6,147.08,147.03,15.6]
[1719998544777,15.94,147.07,147.02,15.6]
[1719998545003,15.77,147.07,147.02,15.6]
[1719998545181,0.17,147.06,147.02,15.6]
[1719998545588,0.17,147.06,147.03,15.6]
[1719998546211,0.34,147.07,147.03,15.6]
[1719998546581,15.94,147.07,147.02,15.6]
[1719998547310,0.34,147.07,146.96,6.8044]
[1719998547622,15.6,147.05,147.0,15.6]
[1719998547789,0.34,147.04,147.0,15.6]
[1719998548199,15.954,147.04,146.95,21.85556836]
[1719998548519,15.6,147.01,146.92,260.1]
[1719998548716,15.94,147.0,146.95,15.6]
[1719998549010,15.77,147.0,146.95,15.6]
[1719998549210,0.17,146.99,146.95,15.6]
[1719998549406,0.17,146.99,146.91,22.0911]
[1719998549407,0.17,146.99,146.96,15.6]
[1719998549796,0.17,146.99,146.94,6.8054]
[1719998549993,0.17,146.99,146.93,6.8057]
[1719998550211,0.17,146.99,146.92,31.19]
[1719998550915,0.17,146.99,146.94,6.8053]
[1719998551313,15.614,147.04,146.95,31.19]
[1719998551488,15.614,147.04,146.97,6.8039]
[1719998552194,6.1965,147.06,147.0,6.8023]
[1719998552719,6.1965,147.06,146.99,6.803]
[1719998553412,0.17,147.05,146.99,6.803]
[1719998553730,0.17,147.05,147.0,6.8026]
[1719998554015,15.5953,147.08,147.0,6.8026]
[1719998554395,15.5953,147.08,146.99,6.803]
[1719998554594,15.5953,147.08,147.0,6.8025]
[1719998554796,15.5953,147.08,146.99,6.803]
[1719998555020,15.5953,147.08,146.98,31.19]
[1719998555218,15.5953,147.08,147.0,6.8024]
[1719998555824,0.17,147.07,147.0,6.8024]
[1719998556025,0.34,147.07,147.0,6.8024]
[1719998557297,0.34,147.07,147.01,31.19]
[1719998558435,0.34,147.07,147.01,37.9921]
[1719998559424,0.34,147.07,147.02,6.8017]
[1719998560438,0.17,147.07,147.01,31.19]
[1719998560615,6.5536,147.1,147.01,31.19]
[1719998560931,0.34,147.09,147.01,31.19]
[1719998561609,6.006,147.15,147.06,31.19]
[1719998561815,6.006,147.15,147.04,27.0655]
[1719998561816,6.006,147.15,147.09,31.19]
[1719998562018,15.1862,147.16,147.09,37.9884]
[1719998562222,15.1862,147.16,147.1,6.798]
[1719998562712,15.1862,147.16,147.09,37.9883]
[1719998563018,15.1862,147.16,147.09,31.19]
[1719998563424,15.1862,147.16,147.09,37.9885]
[1719998563930,15.1862,147.16,147.1,6.798]
[1719998564524,15.1862,147.16,147.09,37.9884]
[1719998564834,15.1862,147.16,147.1,6.798]
[1719998565337,0.17,147.15,147.1,6.798]
[1719998565631,15.1862,147.16,147.11,6.7975]
[1719998565929,0.34,147.17,147.11,6.7975]
[1719998566624,0.34,147.17,147.1,6.798]
[1719998567533,0.17,147.17,147.1,6.798]
[1719998567733,6.2586,147.18,147.11,6.7972]
[1719998567942,6.2586,147.18,147.12,31.19]
[1719998568435,15.4972,147.2,147.12,31.19]
[1719998568732,15.4972,147.2,147.11,36.0966]
[1719998568733,15.4972,147.2,147.07,46.8266]
[1719998568902,15.4972,147.2,147.12,6.797]
[1719998569216,15.4972,147.2,147.11,37.9875]
[1719998569420,15.4972,147.2,147.11,31.19]
[1719998569628,15.4972,147.2,147.12,6.797]
[1719998569938,0.34,147.19,147.12,6.797]
[1719998570639,0.34,147.19,147.11,37.9875]
[1719998570849,0.34,147.19,147.11,31.19]
[1719998571011,15.4972,147.2,147.11,31.19]
[1719998571338,15.4972,147.2,147.12,6.797]
[1719998571928,15.4972,147.2,147.11,37.9874]
[1719998572311,0.34,147.19,147.11,37.9874]
[1719998575312,0.34,147.19,147.11,31.19]
[1719998576318,0.34,147.19,147.11,37.9876]
[1719998576638,0.34,147.19,147.11,31.19]
[1719998577019,0.34,147.19,147.13,6.7966]
[1719998578628,0.34,147.19,147.12,6.7969]
[1719998579636,0.34,147.19,147.11,37.9874]
[1719998580043,0.34,147.19,147.12,6.7968]
[1719998581038,0.34,147.19,147.11,36.50480742]
[1719998581039,6.2411,147.18,147.07,39.52762425]
[1719998581340,6.2411,147.18,147.09,6.7984]
[1719998581341,0.34,147.17,147.09,6.7984]
[1719998581537,0.34,147.17,147.08,6.7988]
[1719998581925,0.34,147.17,147.07,31.19]
[1719998582131,0.34,147.17,147.1,6.7976]
[1719998582548,0.34,147.17,147.08,6.7988]
[1719998583423,0.34,147.17,147.07,36.72009924]
[1719998583424,0.34,147.17,147.09,6.7985]
[1719998585229,15.2931,147.16,147.07,5.53009924]
[1719998585426,0.34,147.15,147.06,31.19]
[1719998585632,0.34,147.15,147.07,6.799]
[1719998587255,0.34,147.15,147.08,6.799]
[1719998588330,0.34,147.15,147.09,6.7985]
[1719998588937,0.34,147.15,147.1,6.798]
[1719998589349,0.34,147.15,147.09,37.9883]
[1719998589653,15.2931,147.16,147.1,6.798]